bitfinex-derivatives/quotes_SOLF0:USTF0_20250509
["timestamp","ask_amount","ask_price","bid_price","bid_amount"]
[1746789791856,50.59602314,175.68,175.52,33.46]
[1746789792059,33.46,175.67,175.52,50.59602314]
[1746789792359,33.46,175.67,175.53,1.8363]
[1746789793657,5.04664621,175.79,175.54,33.44]
[1746789793861,7.82088293,175.78,175.67,17.05107075]
[1746789794061,0.99309707,175.78,175.67,17.05107075]
[1746789794258,5.6911,175.74,175.66,5.6936]
[1746789794562,33.44,175.78,175.66,33.44]
[1746789794763,22.11650085,175.79,175.62,484.84]
[1746789795062,33.44,175.78,175.62,501.90985464]
[1746789795262,33.44,175.78,175.69,5.6926]
[1746789795263,5.6903,175.77,175.69,5.6926]
[1746789795555,33.44,175.78,175.69,5.6926]
[1746789795757,5.6908,175.75,175.68,5.6928]
[1746789795959,33.44,175.78,175.67,33.44]
[1746789796659,5.04664621,175.79,175.67,33.44]
[1746789796861,5.04664621,175.79,175.69,17.05589238]
[1746789797061,5.04664621,175.79,175.7,3.8427]
[1746789797852,468.28024718,175.94,175.73,17.04024718]
[1746789798060,0.99212374,175.93,175.79,17.03907017]
[1746789798363,0.99212374,175.93,175.87,17.03907017]
[1746789798561,0.99212374,175.93,175.85,17.03907017]
[1746789798760,1.0,176.0,175.85,33.42]
[1746789798965,1.0,176.0,175.87,17.03907017]
[1746789799462,1.0,176.0,175.87,50.45907017]
[1746789799864,1.0,176.0,175.91,17.03907017]
[1746789800065,1.0,176.0,175.92,33.42]
[1746789800261,1.0,176.0,175.92,37.1052]
[1746789800862,1.0,176.0,175.97,17.03907017]
[1746789801063,1.0,176.0,175.96,5.6839]
[1746789801259,1.0,176.0,175.95,33.42]
[1746789801565,1.0,176.0,175.98,5.6833]
[1746789801761,5.6813,176.05,175.97,17.03907017]
[1746789801962,451.06,176.17,176.01,17.03907017]
[1746789802163,33.38,176.22,176.02,33.38]
[1746789802362,33.38,176.22,176.08,16.9778625]
[1746789802562,33.38,176.22,176.04,22.6591625]
[1746789802764,33.38,176.22,176.03,1.9196]
[1746789803361,16.9778625,176.2,175.99,467.7378625]
[1746789803561,16.9778625,176.2,175.99,484.14]
[1746789803869,16.9778625,176.15,175.97,35.2996]
[1746789804058,484.14,176.14,175.97,35.2996]
[1746789804262,33.38,176.13,175.99,5.6829]
[1746789804465,33.38,176.13,175.97,35.2996]
[1746789804965,33.38,176.13,175.97,1.9196]
[1746789805558,33.36,176.12,175.98,33.36]
[1746789805760,5.6804,176.07,175.99,5.6826]
[1746789805959,33.36,176.12,175.99,5.6826]
[1746789806157,0.9276,176.11,175.98,33.36]
[1746789806362,0.9276,176.11,175.97,1.9196]
[1746789806766,0.9276,176.11,175.98,5.6832]
[1746789806972,0.9276,176.11,175.97,1.9196]
[1746789807276,5.6806,176.07,176.01,5.6823]
[1746789807474,33.36,176.1,176.01,5.6823]
[1746789807766,33.36,176.1,175.98,5.6832]
[1746789807973,33.36,176.1,175.96,1.9547]
[1746789808172,33.36,176.12,175.96,52.30981291]
[1746789808773,5.6794,176.1,176.03,5.6814]
[1746789808973,33.36,176.12,175.96,52.30981291]
[1746789809173,33.36,176.11,175.96,52.30981291]
[1746789809377,0.9261,176.13,175.97,16.99026928]
[1746789809582,450.76,176.14,175.98,16.98978159]
[1746789809784,33.36,176.16,176.01,16.98400639]
[1746789809974,33.36,176.16,176.11,5.6789]
[1746789810289,33.36,176.19,176.02,52.23528791]
[1746789810485,450.4,176.23,176.03,1.8324]
[1746789810679,450.4,176.23,176.06,16.98098791]
[1746789810875,34.49494495,176.22,176.16,5.6772]
[1746789811189,34.49494495,176.22,176.07,35.3117]
[1746789811190,1.13494495,176.22,176.07,35.3117]
[1746789811582,2.06104495,176.22,176.03,1.8324]
[1746789811881,5.6783,176.14,176.08,5.6798]
[1746789812079,33.34,176.13,175.9,450.22]
[1746789812279,33.34,176.12,175.94,50.3200546]
[1746789812481,5.6792,176.11,175.94,50.3200546]
[1746789812782,33.38,176.11,175.94,50.3200546]
[1746789813284,33.38,176.11,175.95,16.9800546]
[1746789813680,5.6781,176.15,175.94,33.34]
[1746789813887,33.48,176.17,175.99,16.9800546]
[1746789814178,16.9800546,176.14,175.93,1.8324]
[1746789814385,16.9800546,176.1,175.93,1.8324]
[1746789814578,483.76,176.09,175.93,1.8324]
[1746789814779,5.6814,176.04,175.93,1.8324]
[1746789815082,34.8226,176.13,175.96,18.95345251]
[1746789815284,34.8226,176.13,175.96,18.94522352]
[1746789815485,34.8226,176.13,175.97,33.96]
[1746789815886,450.14,176.19,175.98,16.99851539]
[1746789816090,51.97381171,176.18,175.97,50.95121171]
[1746789816286,17.91381171,176.18,176.07,5.6802]
[1746789816585,34.16,176.17,175.97,50.95121171]
[1746789816792,39.8374,176.17,176.09,5.6795]
[1746789817081,16.99713533,176.15,175.96,1.9517]
[1746789817282,5.6794,176.11,176.03,5.6815]
[1746789817587,34.22,176.1,175.96,1.9517]
[1746789817984,0.9269,176.09,175.86,17.0613]
[1746789818189,0.9269,176.09,175.9,34.18]
[1746789818485,0.9269,176.09,175.9,39.817]
[1746789818687,17.01650747,176.04,175.83,450.08]
[1746789818885,17.01650747,176.0,175.84,3.8341]
[1746789819080,17.01650747,176.0,175.68,17.01650747]
[1746789819081,17.05512138,175.85,175.42,57.0116]
[1746789819281,17.05919665,175.82,175.66,1.9021]
[1746789819489,5.6891,175.8,175.71,5.692]
[1746789819686,5.6891,175.8,175.72,1.13817436]
[1746789819991,5.6894,175.79,175.72,1.13817436]
[1746789820190,52.14915596,175.81,175.72,1.13817436]
[1746789820487,34.36,175.8,175.72,1.13817436]
[1746789820691,34.4,175.86,175.72,1.13817436]
[1746789821190,17.04650635,175.85,175.72,1.13817436]
[1746789821393,0.9269,175.85,175.72,1.13817436]
[1746789821888,51.50901777,175.84,175.72,1.13817436]
[1746789822093,17.04901777,175.8,175.72,1.13817436]
[1746789822481,34.46,175.79,175.72,1.13817436]
[1746789823293,34.4,175.78,175.73,5.6913]
[1746789823492,450.26,175.8,175.72,1.13817436]
[1746789823792,450.26,175.8,175.74,5.6909]
[1746789823983,484.74,175.8,175.67,17.04992769]
[1746789824187,34.48,175.85,175.7,17.04449299]
[1746789824492,450.26,175.88,175.74,17.04449299]
[1746789824692,450.26,175.88,175.75,3.7914]
[1746789824894,450.26,175.96,175.78,17.04449299]
[1746789825193,35.59668655,175.95,175.79,1.8093]
[1746789825486,52.64117954,175.95,175.79,1.8093]
[1746789825690,1.13675116,175.94,175.79,1.8093]
[1746789826087,34.44,175.93,175.79,1.8093]
[1746789826292,1.1368804,175.92,175.8,34.52]
[1746789826492,1.1368804,175.92,175.91,5.6855]
[1746789826895,34.5,175.94,175.8,34.52]
[1746789827090,450.26,175.96,175.8,34.52]
[1746789827390,34.52,175.95,175.81,62.0]
[1746789827789,450.26,175.96,175.81,62.0]
[1746789827990,450.26,175.96,175.95,5.6842]
[1746789828184,450.26,175.96,175.85,34.5]
[1746789828593,450.26,175.96,175.95,5.6842]
[1746789828794,450.26,175.96,175.85,34.5]
[1746789829394,450.26,175.96,175.81,34.5]
[1746789829993,450.26,175.96,175.95,5.6842]
[1746789831801,450.26,175.96,175.82,62.0]
[1746789833300,450.26,175.96,175.95,5.6842]
[1746789833794,34.32,175.99,175.98,5.6833]
[1746789834899,40.0,175.99,175.87,1.8886]
[1746789835091,34.32,175.99,175.82,13.2694]
[1746789836992,0.9355,176.03,175.83,2.11350435]
[1746789837296,0.9355,176.03,175.83,2.1155065]
[1746789837688,34.06,176.02,175.84,2.1155065]
[1746789837893,34.9755,176.03,175.83,2.1155065]
[1746789838094,34.9755,176.03,175.86,11.374]
[1746789838295,34.9755,176.03,175.87,36.1155065]
[1746789838496,34.9755,176.03,175.88,2.1155065]
[1746789838696,34.9755,176.03,175.86,11.374]
[1746789838896,34.9755,176.03,175.87,33.96]
[1746789839095,450.3,176.05,175.87,33.96]
[1746789839296,450.3,176.05,176.0,5.6824]
[1746789839598,455.98,176.05,175.86,11.374]
[1746789839793,455.98,176.05,175.86,33.96]
[1746789839794,450.3,176.05,175.86,33.96]
[1746789839988,450.3,176.05,175.79,11.3783]
[1746789840194,17.5951692,175.96,175.64,5.4495]
[1746789840498,17.5951692,175.9,175.65,11.3874]
[1746789840698,17.5951692,175.9,175.59,33.94]
[1746789840699,17.5951692,175.84,175.54,17.5951692]
[1746789840895,34.8517,175.83,175.55,47.1810096]
[1746789841195,0.99123273,175.82,175.56,1.8666096]
[1746789841405,0.99123273,175.82,175.57,11.3931]
[1746789841695,5.69,175.78,175.71,5.6919]
[1746789841895,0.99123273,175.82,175.67,33.92]
[1746789842099,33.92,175.81,175.67,33.92]
[1746789842299,33.92,175.81,175.68,5.5356]
[1746789842598,33.92,175.81,175.68,3.6898]
[1746789842999,33.92,175.81,175.62,1.8458]
[1746789843702,34.0,175.8,175.62,1.8458]
[1746789843999,34.02,175.79,175.62,1.8458]
[1746789844202,0.9317,175.83,175.62,1.8458]
[1746789844203,450.4,175.78,175.62,1.8458]
[1746789844391,34.9917,175.83,175.66,17.63151744]
[1746789844594,450.4,175.87,175.67,34.06]
[1746789844897,484.42,175.87,175.67,35.8512]
[1746789845097,34.04,175.9,175.71,17.63151744]
[1746789845401,34.04,175.9,175.72,35.9475]
[1746789846100,34.04,175.9,175.8,5.689]
[1746789846301,0.9379,175.92,175.72,35.9475]
[1746789846498,34.9379,175.92,175.73,34.0]
[1746789846998,450.4,175.95,175.75,17.63151744]
[1746789847198,11.3597,176.09,175.74,11.382]
[1746789847199,0.9379,176.03,175.8,17.63151744]
[1746789847393,0.9379,176.03,175.81,39.5951]
[1746789848101,34.04,176.02,175.81,39.5951]
[1746789848404,5.6828,176.0,175.94,5.6845]
[1746789848601,34.04,176.02,175.87,34.0]
[1746789848799,39.7221,176.02,175.96,5.6839]
[1746789848999,34.04,176.02,175.87,34.0]
[1746789849799,450.46,176.04,175.87,34.0]
[1746789850005,484.36,176.04,175.87,34.0]
[1746789850197,450.46,176.04,175.87,34.0]
[1746789850397,33.9,176.03,175.87,34.0]
[1746789850600,484.3,176.04,175.87,34.0]
[1746789850905,484.3,176.04,175.88,33.84]
[1746789851105,450.46,176.04,175.88,33.84]
[1746789851402,33.82,176.03,175.88,33.84]
[1746789851706,33.82,176.03,176.02,5.682]
[1746789851900,450.46,176.04,175.93,33.78]
[1746789852105,33.82,176.09,175.94,33.82]
[1746789852298,0.9333,176.1,175.95,3.8281]
[1746789852498,34.8933,176.1,175.95,5.7095]
[1746789852896,34.8933,176.1,175.95,3.8281]
[1746789853706,34.8933,176.1,175.92,33.94]
[1746789854007,5.6814,176.04,175.98,5.683]
[1746789854307,33.94,176.03,175.92,33.94]
[1746789854503,33.94,176.03,175.91,1.8814]
[1746789856304,33.94,176.03,175.88,3.7736]
[1746789856602,33.94,176.03,175.88,37.6536]
[1746789857007,33.94,176.03,175.98,5.683]
[1746789857309,33.94,176.03,175.88,37.6536]
[1746789857504,5.6804,176.07,176.02,5.6817]
[1746789857708,0.9333,176.1,175.93,33.82]
[1746789857910,33.82,176.09,175.93,33.82]
[1746789858106,5.6805,176.07,175.93,33.82]
[1746789858309,450.36,176.13,175.96,17.00980019]
[1746789858606,17.00980019,176.24,176.04,17.00980019]
[1746789858808,33.86,176.27,176.08,17.00980019]
[1746789859006,17.00980019,176.25,176.08,17.00980019]
[1746789859211,0.9901509,176.24,176.07,33.86]
[1746789859605,5.6759,176.21,176.12,5.6787]
[1746789859805,33.84,176.2,176.07,33.86]
[1746789860208,0.9293,176.28,176.07,33.86]
[1746789860408,0.9293,176.28,176.08,17.00980019]
[1746789860599,34.77000024,176.27,176.08,17.00980019]
[1746789861007,17.00980019,176.23,176.09,33.78]
[1746789861205,33.76,176.22,176.05,5.6187]
[1746789861511,17.00980019,176.19,176.05,3.8534]
[1746789861712,5.679,176.12,176.03,5.6814]
[1746789861912,33.78,176.12,176.03,5.6814]
[1746789862114,33.78,176.12,175.99,3.7111]
[1746789862413,17.00980019,176.11,175.99,3.7111]
[1746789862712,17.00980019,176.11,175.99,7.6206]
[1746789862911,17.00980019,176.11,175.95,33.74]
[1746789863106,17.00980019,176.11,175.94,1.9377]
[1746789863312,5.6816,176.04,175.98,5.6832]
[1746789863509,33.76,176.06,175.94,1.9377]
[1746789865012,33.76,176.06,175.96,5.6839]
[1746789865414,34.6844,176.06,175.92,1.7928]
[1746789865913,34.6844,176.06,175.89,1.7881]
[1746789866414,17.00980019,176.03,175.89,1.7881]
[1746789866709,5.6842,175.95,175.89,1.7881]
[1746789867111,33.58,175.97,175.89,1.7881]
[1746789867416,33.58,175.97,175.87,1.0]
[1746789867912,17.00980019,175.95,175.87,1.0]
[1746789868316,17.00980019,175.91,175.78,3.6968]
[1746789868507,17.00980019,175.91,175.73,1.8744]
[1746789868508,33.52,175.9,175.73,3.95614435]
[1746789868711,33.52,175.9,175.73,1.8744]
[1746789868909,33.52,175.9,175.73,3.95759643]
[1746789869112,33.52,175.9,175.73,3.95818648]
[1746789869314,5.6865,175.88,175.8,5.689]
[1746789869610,33.52,175.9,175.73,1.8744]
[1746789869811,33.52,175.9,175.73,5.6913]
[1746789870411,17.61692126,175.95,175.69,3.7252]
[1746789870607,33.68,175.94,175.7,2.07873278]
[1746789870816,18.75360781,175.95,175.69,5.80393278]
[1746789871012,33.8,175.94,175.7,19.69565404]
[1746789871313,33.8,175.94,175.84,5.6877]
[1746789871508,33.8,175.94,175.78,33.8]
[1746789871815,33.8,175.94,175.78,33.78]
[1746789872017,33.8,175.94,175.7,17.61692126]
[1746789872219,33.8,175.94,175.7,33.76]
[1746789872414,33.8,175.94,175.77,5.6898]
[1746789872612,1.13681577,175.93,175.7,33.76]
[1746789872813,33.72,175.92,175.71,2.07895427]
[1746789873017,33.72,175.92,175.72,19.69227289]
[1746789873218,33.72,175.92,175.73,2.07895427]
[1746789873519,39.4054,175.92,175.86,5.687]
[1746789873916,33.72,175.92,175.78,33.66]
[1746789874217,1.13681577,175.93,175.78,33.66]
[1746789874416,33.62,175.92,175.78,33.66]
[1746789874616,33.6,175.91,175.78,33.66]
[1746789875013,33.6,175.91,175.87,5.6868]
[1746789875220,1.13681577,175.93,175.83,33.68]
[1746789875420,33.68,175.95,175.84,1.7643]
[1746789875619,33.68,175.95,175.84,3.562]
[1746789877322,33.68,175.95,175.78,33.6]
[1746789877626,5.6858,175.91,175.78,33.6]
[1746789877819,33.64,175.9,175.78,33.6]
[1746789878219,33.64,175.9,175.77,3.8221]
[1746789879121,33.62,175.94,175.77,3.8221]
[1746789879319,33.68,175.94,175.9,5.6857]
[1746789879622,483.78,175.96,175.82,33.7]
[1746789880125,33.72,175.95,175.82,33.7]
[1746789880314,33.72,175.95,175.91,5.6852]
[1746789880625,33.72,175.95,175.82,33.7]
[1746789881019,450.08,175.96,175.82,95.7]
[1746789881318,33.72,175.95,175.82,95.7]
[1746789881521,33.7,175.95,175.82,95.7]
[1746789881923,33.7,175.95,175.92,5.685]
[1746789882122,450.08,175.96,175.82,95.7]
[1746789882427,450.4,176.06,175.84,17.58875262]
[1746789882626,5.6814,176.04,175.99,5.6827]
[1746789882926,33.7,176.05,175.9,33.7]
[1746789883127,450.4,176.06,175.9,33.7]
[1746789883320,33.68,176.05,175.91,3.7812]
[1746789883721,33.68,176.05,175.95,5.684]
[1746789884021,33.68,176.05,175.86,33.66]
[1746789884325,33.68,176.05,175.86,37.4412]
[1746789884726,33.66,176.04,175.86,37.4412]
[1746789885227,450.4,176.06,175.89,17.57690038]
[1746789885424,450.36,176.16,175.94,17.57690038]
[1746789885624,33.76,176.15,175.95,35.6201]
[1746789885819,33.8,176.14,175.95,35.6201]
[1746789886024,33.8,176.14,175.96,3.769]
[1746789886223,33.8,176.14,175.96,5.83624527]
[1746789886429,5.6785,176.13,176.09,5.6795]
[1746789886629,33.8,176.14,176.02,33.78]
[1746789887024,5.6767,176.19,176.02,33.78]
[1746789887327,450.32,176.25,176.02,33.78]
[1746789887528,33.84,176.24,176.02,33.78]
[1746789888026,5.6762,176.2,176.03,2.06947156]
[1746789888229,33.84,176.24,176.04,63.9297]
[1746789888631,5.6763,176.2,176.16,5.6775]
[1746789889027,33.84,176.24,176.16,5.6775]
[1746789889529,33.84,176.24,176.08,33.74]
[1746789889732,33.84,176.24,176.04,35.6297]
[1746789890032,33.84,176.24,176.04,35.6097]
[1746789890431,5.6765,176.2,176.04,35.6097]
[1746789891127,33.84,176.24,176.04,35.6097]
[1746789891633,450.32,176.25,176.04,35.6097]
[1746789891833,450.32,176.25,176.09,16.97368468]
[1746789892138,39.295,176.24,176.1,35.532]
[1746789892432,33.62,176.24,176.1,37.4185]
[1746789892632,33.62,176.24,176.1,3.7985]
[1746789892837,5.6761,176.21,176.1,3.7985]
[1746789893032,33.62,176.24,176.1,3.7985]
[1746789893232,5.6758,176.21,176.1,3.7985]
[1746789893436,33.66,176.2,176.1,3.7985]
[1746789893835,33.66,176.2,176.04,1.9297]
[1746789894129,33.66,176.2,176.13,5.6782]
[1746789894333,5.6766,176.19,176.05,16.97368468]
[1746789894535,33.66,176.2,176.06,1.783]
[1746789894730,39.4161,176.21,176.09,16.97368468]
[1746789894937,33.74,176.21,176.09,50.71368468]
[1746789895129,33.74,176.21,176.13,16.97368468]
[1746789895326,455.9948,176.25,176.19,5.6764]
[1746789895637,450.32,176.25,176.14,33.72]
[1746789895833,484.14,176.25,176.14,37.3196]
[1746789896240,484.14,176.25,176.08,33.84]
[1746789896534,484.14,176.25,176.14,5.6779]
[1746789896734,501.11368468,176.25,176.07,3.6523]
[1746789897637,16.97368468,176.21,176.07,3.6523]
[1746789897834,5.6787,176.13,176.05,5.6808]
[1746789898042,33.82,176.12,176.0,33.82]
[1746789898341,33.82,176.13,175.98,33.8]
[1746789898537,33.8,176.12,175.98,33.8]
[1746789898835,33.8,176.12,175.97,3.8079]
[1746789899240,33.8,176.12,175.98,16.97368468]
[1746789899443,39.4788,176.12,175.98,16.97368468]
[1746789899635,33.8,176.12,175.98,16.97368468]
[1746789899941,33.8,176.12,176.07,5.6801]
[1746789900244,33.8,176.12,176.0,33.74]
[1746789900441,33.8,176.12,175.97,3.8079]
[1746789900442,5.6806,176.07,176.01,5.682]
[1746789900640,33.72,176.06,175.97,3.8079]
[1746789901035,33.72,176.06,176.05,5.681]
[1746789901339,33.68,176.1,175.97,3.8079]
[1746789901640,39.3595,176.1,175.97,3.8079]
[1746789902040,33.68,176.1,175.97,3.8079]
[1746789902242,5.6797,176.09,176.04,5.6811]
[1746789902444,449.86,176.14,176.01,33.74]
[1746789902644,33.74,176.13,176.1,5.6793]
[1746789902843,455.5382,176.14,176.1,5.6793]
[1746789903144,449.86,176.14,176.01,33.74]
[1746789903353,449.86,176.14,175.97,20.78158468]
[1746789903643,449.86,176.14,175.98,33.66]
[1746789903849,449.86,176.14,176.0,16.97368468]
[1746789904047,449.86,176.14,176.04,16.97368468]
[1746789904242,5.678,176.15,176.05,1.8431]
[1746789904845,33.64,176.18,176.05,1.8431]
[1746789905547,16.97368468,176.17,175.99,11.3656]
[1746789905747,16.97368468,176.17,175.99,33.74]
[1746789906246,33.64,176.18,175.99,33.74]
[1746789906746,16.97368468,176.15,176.05,5.6808]
[1746789906949,16.97368468,176.15,175.99,33.74]
[1746789907648,16.97368468,176.15,176.04,5.6813]
[1746789907950,16.97368468,176.15,175.99,33.74]
[1746789908451,17.00564827,176.13,175.91,50.72564827]
[1746789908646,449.88,176.12,175.95,20.85594827]
[1746789908841,33.68,176.11,175.95,20.85594827]
[1746789909250,33.68,176.11,175.96,33.68]
[1746789909449,39.3592,176.11,176.05,5.6807]
[1746789909644,449.88,176.12,175.96,33.68]
[1746789909845,33.64,176.11,175.96,33.68]
[1746789910452,39.3191,176.11,176.05,5.6808]
[1746789910750,33.64,176.11,175.96,33.68]
[1746789911052,5.6795,176.1,176.05,5.6807]
[1746789911352,449.88,176.12,175.96,33.68]
[1746789911549,5.6803,176.08,176.03,5.6815]
[1746789911950,33.7,176.11,175.96,35.5056]
[1746789912650,50.70564827,176.11,175.96,1.8256]
[1746789913040,33.7,176.11,175.96,1.8256]
[1746789913350,5.6792,176.11,175.96,1.8256]
[1746789913542,33.66,176.1,175.96,1.8256]
[1746789913946,5.6804,176.07,176.03,5.6815]
[1746789914150,33.66,176.1,175.96,35.5256]
[1746789915053,5.6791,176.11,175.96,36.5256]
[1746789915251,33.68,176.11,175.97,17.00564827]
[1746789915450,33.68,176.11,175.96,36.5256]
[1746789916045,5.68,176.09,176.04,5.6811]
[1746789916251,33.68,176.11,175.96,36.5256]
[1746789916451,33.68,176.11,175.96,2.8256]
[1746789916651,33.68,176.11,176.01,5.6823]
[1746789916844,33.68,176.11,175.96,2.8256]
[1746789917152,5.6812,176.05,176.0,5.6824]
[1746789917347,33.56,176.04,175.96,2.8256]
[1746789917741,33.56,176.04,175.96,1.0]
[1746789918140,33.56,176.04,175.96,6.6839]
[1746789918342,33.56,176.04,175.96,1.0]
[1746789918753,17.00564827,176.01,175.75,449.98]
[1746789919050,17.00564827,175.97,175.8,3.7199]
[1746789919252,33.5,175.96,175.8,3.7199]
[1746789919643,17.00564827,175.97,175.8,3.7199]
[1746789919950,33.46,175.96,175.8,3.7199]
[1746789920256,5.6859,175.9,175.85,5.6873]
[1746789920552,33.46,175.89,175.8,3.7199]
[1746789922154,33.46,175.89,175.77,2.08088487]
[1746789922155,483.6,175.89,175.76,1.7697]
[1746789922356,17.00564827,175.85,175.75,5.6905]
[1746789922654,33.42,175.84,175.68,5.83722351]
[1746789922856,33.42,175.84,175.76,5.6903]
[1746789923058,33.42,175.84,175.7,2.0834033]
[1746789923352,33.42,175.83,175.72,17.05098807]
[1746789923962,33.42,175.83,175.78,5.6895]
[1746789924150,33.42,175.83,175.72,17.05098807]
[1746789924347,33.42,175.83,175.69,33.42]
[1746789924551,33.42,175.83,175.7,2.07870516]
[1746789924751,33.42,175.83,175.69,2.07912507]
[1746789925056,5.6887,175.82,175.69,2.07912507]
[1746789925358,33.42,175.81,175.69,2.07502641]
[1746789925552,5.6881,175.84,175.7,33.42]
[1746789925752,450.14,175.89,175.72,17.05098807]
[1746789926059,39.1066,175.88,175.83,5.6878]
[1746789926257,33.42,175.88,175.76,17.05098807]
[1746789926657,33.42,175.88,175.75,33.42]
[1746789926862,33.42,175.88,175.76,18.88228807]
[1746789927056,33.42,175.88,175.76,1.8313]
[1746789927253,5.6872,175.86,175.76,1.8313]
[1746789927454,33.42,175.88,175.76,1.8313]
[1746789927958,33.42,175.88,175.74,17.05098807]
[1746789928359,33.42,175.88,175.71,33.42]
[1746789928560,33.42,175.88,175.68,3.7548]
[1746789928755,5.6907,175.76,175.7,5.6923]
[1746789928954,33.44,175.75,175.6,3.7007]
[1746789929156,33.44,175.74,175.6,3.7007]
[1746789929350,483.8,175.73,175.55,17.05098807]
[1746789929552,483.8,175.73,175.53,33.44]
[1746789929754,483.8,175.73,175.53,50.49098807]
[1746789931063,5.6926,175.7,175.53,50.49098807]
[1746789931262,444.668,175.73,175.57,17.05098807]
[1746789931461,33.44,175.69,175.57,17.05098807]
[1746789931962,33.44,175.7,175.67,5.6932]
[1746789932158,33.44,175.7,175.15,124.0]
[1746789932367,33.44,175.7,175.48,17.05098807]
[1746789932558,5.6937,175.66,175.48,17.05098807]
[1746789932756,444.668,175.73,175.52,17.05098807]
[1746789932958,5.6922,175.71,175.56,17.05098807]
[1746789933257,33.44,175.72,175.54,3.8285]
[1746789933454,33.44,175.72,175.54,20.87948807]
[1746789933656,11.3689,175.95,175.66,17.05515946]
[1746789933856,484.58,175.94,175.69,17.04958863]
[1746789934153,484.58,175.94,175.73,17.04958863]
[1746789934661,5.6864,175.89,175.73,17.04958863]
[1746789934860,33.8,175.88,175.73,17.04958863]
[1746789935059,33.8,175.88,175.72,33.82]
[1746789935261,33.78,175.87,175.72,33.82]
[1746789935463,33.76,175.86,175.72,33.82]
[1746789935762,33.76,175.85,175.72,33.82]
[1746789936265,33.76,175.85,175.8,5.6888]
[1746789936760,5.688,175.84,175.72,33.82]
[1746789936963,33.66,175.83,175.72,33.82]
[1746789937161,33.66,175.83,175.69,11.3851]
[1746789937364,33.66,175.83,175.68,33.66]
[1746789938067,33.66,175.83,175.67,39.1755]
[1746789938256,33.66,175.83,175.67,5.5955]
[1746789938461,5.6891,175.81,175.67,5.5955]
[1746789938661,484.38,175.83,175.67,5.5955]
[1746789938867,5.6885,175.82,175.78,5.6897]
[1746789939063,484.38,175.83,175.67,5.5955]
[1746789940063,484.38,175.83,175.68,5.6929]
[1746789940266,484.38,175.83,175.6,33.48]
[1746789940465,501.54,175.83,175.58,5.5236]
[1746789940669,1.13752701,175.82,175.64,5.6941]
[1746789940868,1.13752701,175.82,175.58,5.5236]
[1746789941168,5.6928,175.69,175.64,5.6942]
[1746789941370,33.46,175.68,175.64,5.6942]
[1746789941568,33.46,175.68,175.58,5.5236]
[1746789942772,39.1532,175.68,175.62,5.6947]
[1746789942976,450.72,175.72,175.58,5.5236]
[1746789943174,39.152,175.71,175.58,5.5236]
[1746789943568,33.46,175.71,175.58,5.5236]
[1746789943969,33.46,175.7,175.58,5.5236]
[1746789944274,33.46,175.7,175.58,3.7597]
[1746789944577,33.46,175.7,175.53,19.52222662]
[1746789944775,5.6934,175.67,175.53,19.52222662]
[1746789944971,33.46,175.7,175.53,19.52222662]